fUST/lending_fUST_20250607
["ID","MTS","AMOUNT","RATE_DAILY","PERIOD"]
[364824429,1749258645319,-420.0,0.00019899,2]
[364824430,1749258645328,-410.0,0.00019899,2]
[364824431,1749258645341,-410.0,0.00019899,2]
[364824432,1749258645351,-420.0,0.00019899,2]
[364824433,1749258645360,-440.0,0.00019899,2]
[364824434,1749258645369,-440.0,0.00019899,2]
[364824435,1749258645378,-440.0,0.00019899,2]
[364824436,1749258645387,-200.36669454,0.00019899,2]
[364824437,1749258645396,-440.0,0.00019899,2]
[364824438,1749258645405,-420.0,0.00019899,2]
[364824439,1749258645414,-420.0,0.00019899,2]
[364824440,1749258645423,-440.0,0.00019899,2]
[364824441,1749258645433,-420.0,0.00019899,2]
[364824442,1749258645443,-420.0,0.00019899,2]
[364824443,1749258645452,-470.0,0.00019899,2]
[364824444,1749258645461,-440.0,0.00019899,2]
[364824445,1749258645470,-470.0,0.00019899,2]
[364824446,1749258645479,-440.0,0.00019899,2]
[364824447,1749258645488,-440.0,0.00019899,2]
[364824448,1749258645497,-450.0,0.00019899,2]
[364824449,1749258645506,-440.0,0.00019899,2]
[364824450,1749258645516,-410.0,0.00019899,2]
[364824451,1749258645525,-410.0,0.00019899,2]
[364824452,1749258645534,-450.0,0.00019899,2]
[364824453,1749258645543,-440.0,0.00019899,2]
[364824454,1749258645554,-410.0,0.00019899,2]
[364824455,1749258645564,-450.0,0.00019899,2]
[364824456,1749258645573,-410.0,0.00019899,2]
[364824457,1749258645582,-440.0,0.00019899,2]
[364824458,1749258645595,-440.0,0.00019899,2]
[364824459,1749258645604,-440.0,0.00019899,2]
[364824460,1749258645613,-441.64390568,0.00019899,2]
[364824461,1749258645622,-430.0,0.00019899,2]
[364824462,1749258645631,-440.0,0.00019899,2]
[364824463,1749258645641,-420.0,0.00019899,2]
[364824464,1749258645650,-440.0,0.00019899,2]
[364824465,1749258645660,-440.0,0.00019899,2]
[364824466,1749258645670,-440.0,0.00019899,2]
[364824467,1749258645679,-440.0,0.00019899,2]
[364824468,1749258645688,-440.0,0.00019899,2]
[364824469,1749258645697,-430.0,0.00019899,2]
[364824470,1749258645706,-430.0,0.00019899,2]
[364824471,1749258645715,-440.0,0.00019899,2]
[364824472,1749258645727,-1272.09,0.00019899,2]
[364824473,1749258645736,-440.0,0.00019899,2]
[364824474,1749258645745,-430.0,0.00019899,2]
[364824475,1749258645754,-430.0,0.00019899,2]
[364824476,1749258645764,-883.45661579,0.000199,2]
[364824477,1749258645774,-440.0,0.0001997,2]
[364824478,1749258645783,-511.7,0.0001997,2]
[364824479,1749258645792,-440.0,0.0001997,2]
[364824481,1749258645801,-440.0,0.0001997,2]
[364824482,1749258645811,-440.0,0.0001997,2]
[364824483,1749258645821,-613.06,0.0001997,2]
[364824484,1749258645830,-440.0,0.0001997,2]
[364824485,1749258645840,-440.0,0.0001997,2]
[364824486,1749258645849,-1161.04,0.0001997,2]
[364824487,1749258645858,-926.9,0.0001997,2]
[364824488,1749258645868,-440.0,0.0001997,2]
[364824489,1749258645878,-430.0,0.00019971,2]
[364824490,1749258645887,-430.71441826,0.00019971,2]
[364824491,1749258645897,-440.0,0.00019971,2]
[364824492,1749258645906,-440.0,0.00019971,2]
[364824493,1749258645915,-430.0,0.00019971,2]
[364824494,1749258645925,-450.0,0.00019971,2]
[364824495,1749258645935,-430.0,0.00019971,2]
[364824496,1749258645944,-430.0,0.00019971,2]
[364824497,1749258645953,-440.0,0.00019971,2]
[364824498,1749258645963,-430.0,0.00019971,2]
[364824499,1749258645971,-440.0,0.00019971,2]
[364824500,1749258645981,-430.0,0.00019971,2]
[364824501,1749258645989,-440.0,0.00019971,2]
[364824502,1749258645999,-440.0,0.00019971,2]
[364824503,1749258646009,-430.0,0.00019971,2]
[364824504,1749258646018,-430.0,0.00019971,2]
[364824505,1749258646027,-440.0,0.00019971,2]
[364824506,1749258646037,-500.0,0.00019975,2]
[364824507,1749258646046,-229.52673067,0.00019981,2]
[364824508,1749258646056,-834.50537533,0.00019981,2]
[364824509,1749258646065,-500.0,0.00019996,2]
[364824510,1749258646076,-440.0,0.00019997,2]
[364824511,1749258646086,-420.0,0.00019997,2]
[364824512,1749258646095,-420.0,0.00019997,2]
[364824513,1749258646104,-420.0,0.00019997,2]
[364824514,1749258646114,-420.0,0.00019997,2]
[364824515,1749258646124,-420.0,0.00019997,2]
[364824516,1749258646133,-440.0,0.00019997,2]
[364824517,1749258646142,-440.0,0.00019997,2]
[364824518,1749258646152,-430.0,0.00019997,2]
[364824519,1749258646161,-440.0,0.00019997,2]
[364824520,1749258646170,-440.0,0.0002,2]
[364824521,1749258646180,-865.16,0.0002,2]
[364824522,1749258646190,-440.0,0.0002,2]
[364824523,1749258646200,-440.0,0.0002,2]
[364824524,1749258646209,-440.0,0.0002,2]
[364824525,1749258646218,-440.0,0.0002,2]
[364824526,1749258646228,-712.74,0.0002,2]
[364824527,1749258646237,-479.25,0.0002,2]
[364824528,1749258646246,-588.28,0.0002,2]
[364824529,1749258646255,-738.69,0.0002,2]
[364824530,1749258646265,-440.0,0.00020051,2]
[364824531,1749258646275,-440.0,0.00020051,2]
[364824532,1749258646286,-410.0,0.00020051,2]
[364824533,1749258646297,-410.0,0.00020051,2]
[364824534,1749258646307,-410.0,0.00020051,2]
[364824535,1749258646316,-440.0,0.00020051,2]
[364824536,1749258646325,-430.0,0.00020051,2]
[364824537,1749258646334,-470.13800753,0.00020051,2]
[364824538,1749258646344,-440.0,0.00020051,2]
[364824539,1749258646353,-1000.0,0.00020052,2]
[364824540,1749258646362,-509.7816681,0.00020055,2]
[364824541,1749258646371,-883.45661565,0.00020072,2]
[364824542,1749258646381,-179.69765561,0.00020136,2]
[364824543,1749258646391,-255.353,0.00020136,2]
[364824544,1749258646401,-215.32777173,0.00020173,2]
[364824545,1749258646411,-361.4099551,0.00020173,2]
[364824546,1749258646421,-440.0,0.00020173,2]
[364824547,1749258646431,-410.0,0.00020173,2]
[364824548,1749258646441,-380.0,0.00020173,2]
[364824549,1749258646452,-440.0,0.00020173,2]
[364824550,1749258646462,-549.07609182,0.00020173,2]
[364824551,1749258646472,-440.0,0.00020173,2]
[364824552,1749258646481,-440.0,0.00020173,2]
[364824553,1749258646491,-440.0,0.00020173,2]
[364824554,1749258646500,-1272.09,0.00020173,2]
[364824555,1749258646510,-307.370529,0.00020187,2]
[364824556,1749258646520,-440.0,0.00020244,2]
[364824557,1749258646529,-511.7,0.00020244,2]
[364824558,1749258646538,-466.47,0.00020244,2]
[364824559,1749258646548,-613.06,0.00020244,2]
[364824560,1749258646558,-440.0,0.00020244,2]
[364824561,1749258646567,-1161.04,0.00020244,2]
[364824562,1749258646577,-926.9,0.00020244,2]
[364824563,1749258646589,-440.0,0.00020244,2]
[364824564,1749258646601,-883.45661565,0.00020245,2]
[364824565,1749258646610,-440.0,0.00020271,2]
[364824566,1749258646621,-440.0,0.00020271,2]
[364824567,1749258646637,-440.0,0.00020271,2]
[364824568,1749258646650,-266.80079443,0.00020271,2]
[364824569,1749258646808,-440.0,0.00020273,2]
[364824570,1749258646818,-865.16,0.00020273,2]
[364824571,1749258646827,-440.0,0.00020273,2]
[364824572,1749258646837,-440.0,0.00020273,2]
[364824573,1749258646846,-440.0,0.00020273,2]
[364824574,1749258646856,-440.0,0.00020273,2]
[364824575,1749258646865,-712.74,0.00020273,2]
[364824576,1749258646874,-479.25,0.00020273,2]
[364824577,1749258646883,-588.28,0.00020273,2]
[364824578,1749258646893,-738.69,0.00020273,2]
[364824579,1749258646903,-883.45661565,0.00020417,3]
[364824580,1749258646913,-440.0,0.00020447,2]
[364824581,1749258646923,-440.0,0.00020447,2]
[364824582,1749258646932,-440.0,0.00020447,2]
[364824583,1749258646941,-1272.09,0.00020447,2]
[364824584,1749258646950,-420.0,0.00020477,2]
[364824585,1749258646959,-440.0,0.00020518,2]
[364824586,1749258646968,-511.7,0.00020518,2]
[364824587,1749258646978,-613.06,0.00020518,2]
[364824588,1749258646987,-440.0,0.00020518,2]
[364824589,1749258646996,-1161.04,0.00020518,2]
[364824590,1749258647006,-926.9,0.00020518,2]
[364824591,1749258647015,-440.0,0.00020518,2]
[364824592,1749258647025,-447.65831651,0.00020547,2]
[364824593,1749258647034,-865.16,0.00020547,2]
[364824594,1749258647043,-440.0,0.00020547,2]
[364824595,1749258647052,-440.0,0.00020547,2]
[364824596,1749258647061,-440.0,0.00020547,2]
[364824597,1749258647070,-440.0,0.00020547,2]
[364824598,1749258647079,-712.74,0.00020547,2]
[364824599,1749258647088,-479.25,0.00020547,2]
[364824600,1749258647097,-588.28,0.00020547,2]
[364824601,1749258647106,-738.69,0.00020547,2]
[364824602,1749258647115,-883.45661565,0.0002059,3]
[364824603,1749258647124,-580.72903882,0.00020698,2]
[364824604,1749258647133,-160.0,0.00020698,2]
[364824605,1749258647143,-420.0,0.00020709,2]
[364824606,1749258647152,-364.7156952,0.00020712,2]
[364824607,1749258647161,-364.7156952,0.00020712,2]
[364824608,1749258647170,-364.7156952,0.00020712,2]
[364824609,1749258647179,-364.7156952,0.00020712,2]
[364824610,1749258647189,-364.7156952,0.00020712,2]
[364824611,1749258647198,-783.2666415,0.00020712,2]
[364824612,1749258647207,-364.7156952,0.00020712,2]
[364824613,1749258647217,-364.7156952,0.00020712,2]
[364824614,1749258647226,-364.7156952,0.00020712,2]
[364824615,1749258647235,-854.5182505,0.00020712,2]
[364824616,1749258647245,-411.4,0.00020721,2]
[364824617,1749258647254,-440.0,0.00020721,2]
[364824618,1749258647263,-176.85,0.00020721,2]
[364824619,1749258647272,-1272.09,0.00020721,2]
[364824620,1749258647282,-883.45661565,0.00020762,3]
[364824621,1749258647292,-440.0,0.00020792,2]
[364824622,1749258647301,-511.7,0.00020792,2]
[364824623,1749258647310,-613.06,0.00020792,2]
[364824624,1749258647320,-440.0,0.00020792,2]
[364824625,1749258647329,-1161.04,0.00020792,2]
[364824626,1749258647338,-409.36923608,0.00020792,2]
[364824627,1749258647425,-517.53076392,0.00020792,2]
[364824628,1749258647435,-537.3549395,0.00020792,2]
[364824629,1749258647444,-865.16,0.00020821,2]
[364824630,1749258647454,-440.0,0.00020821,2]
[364824631,1749258647463,-440.0,0.00020821,2]
[364824632,1749258647473,-33.42992261,0.00020821,2]
[364824633,1749258647485,-406.57007739,0.00020821,2]
[364824634,1749258647495,-55.40073852,0.00020821,2]
[364824635,1749258647506,-262.248948,0.00020821,2]
[364824636,1749258647517,-122.35031348,0.00020821,2]
[364824637,1749258647526,-131.39158385,0.00020821,2]
[364824638,1749258647537,-581.34841615,0.00020821,2]
[364824639,1749258647546,-479.25,0.00020821,2]
[364824640,1749258647556,-588.28,0.00020821,2]
[364824641,1749258647567,-738.69,0.00020821,2]
[364824642,1749258647578,-883.45661565,0.00020934,4]
[364824643,1749258647588,-440.0,0.00020995,2]
[364824644,1749258647599,-1272.09,0.00020995,2]
[364824645,1749258647608,-440.0,0.00021066,2]
[364824646,1749258647617,-511.7,0.00021066,2]
[364824647,1749258647626,-3.50678066,0.00021066,2]
[364824648,1749258647639,-609.55321934,0.00021066,2]
[364824649,1749258647650,-440.0,0.00021066,2]
[364824650,1749258647659,-1161.04,0.00021066,2]
[364824651,1749258647670,-926.9,0.00021066,2]
[364824652,1749258647679,-314.01,0.00021083,3]
[364824653,1749258647687,-157.01,0.00021083,3]
[364824654,1749258647696,-471.05,0.00021083,3]
[364824655,1749258647705,-865.16,0.00021095,2]
[364824656,1749258647715,-440.0,0.00021095,2]
[364824657,1749258647725,-440.0,0.00021095,2]
[364824658,1749258647735,-440.0,0.00021095,2]
[364824659,1749258647743,-473.1,0.00021095,2]
[364824660,1749258647752,-712.74,0.00021095,2]
[364824661,1749258647763,-479.25,0.00021095,2]
[364824662,1749258647772,-588.28,0.00021095,2]
[364824663,1749258647781,-738.69,0.00021095,2]
[364824664,1749258647791,-338.49,0.000211,2]
[364824665,1749258647800,-883.45661565,0.00021107,4]
[364824666,1749258647809,-628.02,0.00021137,3]
[364824667,1749258647819,-751.24251236,0.00021148,2]
[364824668,1749258647830,-248.75748764,0.00021148,2]
[364824669,1749258647839,-158.6329813,0.0002126,2]
[364824670,1749258647849,-237.5657552,0.0002126,2]
[364824671,1749258647859,-572.9277863,0.0002126,2]
[364824672,1749258647869,-176.6779968,0.0002126,2]
[364824673,1749258647878,-158.6329813,0.0002126,2]
[364824674,1749258647887,-176.6779968,0.0002126,2]
[364824675,1749258647896,-153.0,0.0002126,2]
[364824676,1749258647906,-572.9277863,0.0002126,2]
[364824677,1749258647915,-158.6329813,0.0002126,2]
[364824678,1749258647925,-176.6779968,0.0002126,2]
[364824679,1749258647935,-572.9277863,0.0002126,2]
[364824680,1749258647944,-153.0,0.0002126,2]
[364824681,1749258647953,-176.6779968,0.0002126,2]
[364824682,1749258647963,-572.9277863,0.0002126,2]
[364824683,1749258647972,-158.6329813,0.0002126,2]
[364824684,1749258647981,-176.6779968,0.0002126,2]
[364824685,1749258647990,-572.9277863,0.0002126,2]
[364824686,1749258648000,-158.6329813,0.0002126,2]
[364824687,1749258648009,-157.9263109,0.0002126,2]
[364824688,1749258648018,-175.782573,0.0002126,2]
[364824689,1749258648027,-1170.0411211,0.0002126,2]
[364824690,1749258648037,-176.6779968,0.0002126,2]
[364824691,1749258648046,-572.9277863,0.0002126,2]
[364824692,1749258648055,-158.6329813,0.0002126,2]
[364824693,1749258648064,-176.6779968,0.0002126,2]
[364824694,1749258648073,-158.6329813,0.0002126,2]
[364824695,1749258648082,-572.9277863,0.0002126,2]
[364824696,1749258648091,-158.6329813,0.0002126,2]
[364824697,1749258648100,-176.6779968,0.0002126,2]
[364824698,1749258648109,-572.3035856,0.0002126,2]
[364824699,1749258648119,-163.9382195,0.0002126,2]
[364824700,1749258648128,-572.9277863,0.0002126,2]
[364824701,1749258648138,-158.6329813,0.0002126,2]
[364824702,1749258648147,-176.0810476,0.0002126,2]
[364824703,1749258648157,-176.6779968,0.0002126,2]
[364824704,1749258648166,-78.62807869,0.0002126,2]
[364824705,1749258648178,-494.29970761,0.0002126,2]
[364824706,1749258648188,-158.6329813,0.0002126,2]
[364824707,1749258648198,-176.6779968,0.0002126,2]
[364824708,1749258648207,-158.6329813,0.0002126,2]
[364824709,1749258648217,-153.0,0.0002126,2]
[364824710,1749258648226,-572.9277863,0.0002126,2]
[364824711,1749258648235,-176.6779968,0.0002126,2]
[364824712,1749258648244,-158.6329813,0.0002126,2]
[364824713,1749258648254,-572.9277863,0.0002126,2]
[364824714,1749258648263,-158.6329813,0.0002126,2]
[364824715,1749258648273,-153.0,0.0002126,2]
[364824716,1749258648283,-176.6779968,0.0002126,2]
[364824717,1749258648293,-572.9277863,0.0002126,2]
[364824718,1749258648302,-176.6779968,0.0002126,2]
[364824719,1749258648311,-158.6329813,0.0002126,2]
[364824720,1749258648321,-572.9277863,0.0002126,2]
[364824721,1749258648331,-153.0,0.0002126,2]
[364824722,1749258648340,-176.5094943,0.0002126,2]
[364824723,1749258648349,-158.6329813,0.0002126,2]
[364824724,1749258648360,-572.9277863,0.0002126,2]
[364824725,1749258648369,-158.6329813,0.0002126,2]
[364824726,1749258648379,-342.7839785,0.0002126,2]
[364824727,1749258648389,-440.0,0.00021269,2]
[364824728,1749258648399,-1272.09,0.00021269,2]
[364824729,1749258648409,-883.45661565,0.00021279,5]
[364824730,1749258648418,-1256.04,0.0002132,3]
[364824731,1749258648428,-2512.09,0.0002133,3]
[364824732,1749258648439,-440.0,0.0002134,2]
[364824733,1749258648449,-511.7,0.0002134,2]
[364824734,1749258648459,-613.06,0.0002134,2]
[364824735,1749258648468,-440.0,0.0002134,2]
[364824736,1749258648478,-1161.04,0.0002134,2]
[364824737,1749258648488,-926.9,0.0002134,2]
[364824738,1749258648498,-865.16,0.00021369,2]
[364824739,1749258648507,-440.0,0.00021369,2]
[364824740,1749258648518,-308.0762265,0.00021369,2]
[364824741,1749258648528,-440.0,0.00021369,2]
[364824742,1749258648537,-712.74,0.00021369,2]
[364824743,1749258648546,-479.25,0.00021369,2]
[364824744,1749258648556,-588.28,0.00021369,2]
[364824745,1749258648565,-738.69,0.00021369,2]
[364824746,1749258648575,-565.39,0.000214,2]
[364824747,1749258648585,-883.45661565,0.00021452,5]
[364824748,1749258648596,-962.0,0.0002146,2]
[364824749,1749258648605,-320.9827045,0.00021543,2]
[364824750,1749258648615,-1272.09,0.00021543,2]
[364824751,1749258648625,-250.0,0.00021599,2]
[364824752,1749258648637,-208.91,0.000216,2]
[364824753,1749258648647,-440.0,0.00021614,2]
[364824754,1749258648657,-511.7,0.00021614,2]
[364824755,1749258648666,-613.06,0.00021614,2]
[364824756,1749258648676,-440.0,0.00021614,2]
[364824757,1749258648686,-1161.04,0.00021614,2]
[364824758,1749258648696,-926.9,0.00021614,2]
[364824759,1749258648706,-883.45661565,0.00021624,5]
[364824760,1749258648715,-865.16,0.00021643,2]
[364824761,1749258648724,-440.0,0.00021643,2]
[364824762,1749258648733,-440.0,0.00021643,2]
[364824763,1749258648742,-712.74,0.00021643,2]
[364824764,1749258648752,-479.25,0.00021643,2]
[364824765,1749258648761,-588.28,0.00021643,2]
[364824766,1749258648771,-738.69,0.00021643,2]
[364824767,1749258648780,-2195.0,0.0002165,2]
[364824768,1749258648789,-709.0,0.0002165,2]
[364824769,1749258648799,-500.0,0.00021792,2]
[364824770,1749258648809,-883.45661565,0.00021797,6]
[364824771,1749258648818,-1272.09,0.00021817,2]
[364824772,1749258648828,-160.38958504,0.00021827,2]
[364824773,1749258648838,-440.0,0.00021888,2]
[364824774,1749258648847,-511.7,0.00021888,2]
[364824775,1749258648857,-613.06,0.00021888,2]
[364824776,1749258648866,-440.0,0.00021888,2]
[364824777,1749258648876,-1161.04,0.00021888,2]
[364824778,1749258648885,-926.9,0.00021888,2]
[364824779,1749258648894,-150.0,0.000219,2]
[364824780,1749258648904,-500.0,0.00021917,2]
[364824781,1749258648914,-865.16,0.00021917,2]
[364824782,1749258648923,-440.0,0.00021917,2]
[364824783,1749258648932,-440.0,0.00021917,2]
[364824784,1749258648942,-712.74,0.00021917,2]
[364824785,1749258648951,-479.25,0.00021917,2]
[364824786,1749258648960,-588.28,0.00021917,2]
[364824787,1749258648969,-738.69,0.00021917,2]
[364824788,1749258648979,-207.18523208,0.00021918,3]
[364824789,1749258648988,-883.45661565,0.00021969,6]
[364824790,1749258648997,-160.0,0.00022068,2]
[364824791,1749258649007,-153.0,0.00022082,2]
[364824792,1749258649017,-153.0,0.00022082,2]
[364824793,1749258649026,-158.6329813,0.00022082,2]
[364824794,1749258649035,-158.6329813,0.00022082,2]
[364824795,1749258649044,-153.0,0.00022082,2]
[364824796,1749258649054,-295.4279297,0.00022082,2]
[364824797,1749258649063,-153.0,0.00022082,2]
[364824798,1749258649073,-153.0,0.00022082,2]
[364824799,1749258649082,-153.0,0.00022082,2]
[364824800,1749258649091,-153.0,0.00022082,2]
[364824801,1749258649101,-153.0,0.00022082,2]
[364824802,1749258649110,-153.0,0.00022082,2]
[364824803,1749258649119,-256.2893383,0.00022082,2]
[364824804,1749258649128,-153.0,0.00022082,2]
[364824805,1749258649137,-153.0,0.00022082,2]
[364824806,1749258649146,-153.0,0.00022082,2]
[364824807,1749258649156,-153.0,0.00022082,2]
[364824808,1749258649165,-153.0,0.00022082,2]
[364824809,1749258649174,-153.0,0.00022082,2]
[364824810,1749258649184,-153.0,0.00022082,2]
[364824811,1749258649193,-153.0,0.00022082,2]
[364824812,1749258649202,-153.0,0.00022082,2]
[364824813,1749258649212,-153.0,0.00022082,2]
[364824814,1749258649222,-153.0,0.00022082,2]
[364824815,1749258649231,-153.0,0.00022082,2]
[364824816,1749258649240,-1272.09,0.00022091,2]
[364824817,1749258649250,-207.4,0.00022097,2]
[364824818,1749258649260,-883.45661565,0.00022141,6]
[364824819,1749258649270,-440.0,0.00022162,2]
[364824820,1749258649285,-511.7,0.00022162,2]
[364824821,1749258649295,-613.06,0.00022162,2]
[364824822,1749258649304,-440.0,0.00022162,2]
[364824823,1749258649313,-1161.04,0.00022162,2]
[364824824,1749258649322,-926.9,0.00022162,2]
[364824825,1749258649332,-865.16,0.00022191,2]
[364824826,1749258649341,-440.0,0.00022191,2]
[364824827,1749258649350,-440.0,0.00022191,2]
[364824828,1749258649359,-139.69243628,0.00022191,2]
[364824829,1749258649420,-316.03822774,0.00022191,2]
[364824832,1749258880283,170.0,0.00016438,3]
[364824839,1749259466666,10000.0,0.00024658,120]
[364824840,1749259478987,5012.0,0.00024658,120]
[364824842,1749259546267,290.249519,0.00013699,2]
[364824846,1749259642091,-300.0,0.00019176,2]
[364824847,1749259642112,-300.0,0.00019177,2]
[364824848,1749259642133,-300.0,0.00019177,2]
[364824849,1749259642154,-856.0,0.00019177,2]
[364824850,1749259642174,-422.50664736,0.00019178,2]
[364824852,1749259654126,-17.49335264,0.00019178,2]
[364824853,1749259654148,-300.0,0.00019347,2]
[364824854,1749259654170,-206.66177371,0.00019348,2]
[364824855,1749259654195,-887.39323554,0.00019348,2]
[364824856,1749259654220,-880.85579498,0.00019348,2]
[364824899,1749259832356,-300.0,0.00019346,2]
[364824900,1749259832366,-193.52358549,0.00019347,2]
[364824901,1749259832378,-206.47641451,0.00019347,2]
[364824902,1749259832388,-401.85261119,0.00019347,2]
[364824903,1749259832397,-440.0,0.00019347,2]
[364824904,1749259832407,-271.64122963,0.00019347,2]
[364824905,1749259832416,-440.0,0.00019347,2]
[364824906,1749259832426,-431.18501727,0.00019347,2]
[364824907,1749259832435,-443.17741078,0.00019347,2]
[364824908,1749259832445,-434.72773545,0.00019347,2]
[364824909,1749259832454,-433.77246635,0.00019347,2]
[364824910,1749259832464,-403.19951138,0.00019347,2]
[364824911,1749259832474,-456.91420861,0.00019347,2]
[364824912,1749259832484,-445.87735397,0.00019347,2]
[364824913,1749259832494,-449.32875738,0.00019347,2]
[364824914,1749259832504,-50000.0,0.00019347,2]
[364824915,1749259832516,-151.0,0.00019348,2]
[364824916,1749259832527,-440.0,0.00019348,2]
[364824917,1749259832537,-440.0,0.00019348,2]
[364824918,1749259832547,-524.69183299,0.00019348,2]
[364824919,1749259832557,-430.0,0.00019348,2]
[364824920,1749259832567,-440.0,0.00019348,2]
[364824921,1749259832578,-440.0,0.00019348,2]
[364824922,1749259832588,-440.0,0.00019348,2]
[364824923,1749259832598,-480.0,0.00019348,2]
[364824924,1749259832608,-440.0,0.00019348,2]
[364824925,1749259832618,-440.0,0.00019348,2]
[364824926,1749259832627,-440.0,0.00019348,2]
[364824927,1749259832637,-440.0,0.00019348,2]
[364824928,1749259832647,-440.0,0.00019348,2]
[364824929,1749259832656,-440.0,0.00019348,2]
[364824930,1749259832666,-440.0,0.00019348,2]
[364824931,1749259832681,-265.27,0.00019348,2]
[364824932,1749259832691,-445.94074558,0.00019348,2]
[364824933,1749259832701,-467.37039523,0.00019348,2]
[364824934,1749259832710,-440.0,0.00019348,2]
[364824935,1749259832721,-461.77,0.00019348,2]
[364824936,1749259832737,-452.28337676,0.00019348,2]
[364824937,1749259832747,-151.0,0.0001945,2]
[364824938,1749259832756,-440.0,0.0001945,2]
[364824939,1749259832766,-440.0,0.0001945,2]
[364824940,1749259832775,-440.0,0.0001945,2]
[364824941,1749259832784,-484.74,0.0001945,2]
[364824942,1749259832794,-440.0,0.0001945,2]
[364824943,1749259832804,-440.0,0.0001945,2]
[364824944,1749259832813,-440.0,0.0001945,2]
[364824945,1749259832822,-440.0,0.0001945,2]
[364824946,1749259832832,-440.0,0.0001945,2]
[364824947,1749259832841,-440.0,0.0001945,2]
[364824948,1749259832850,-440.0,0.0001945,2]
[364824949,1749259832859,-440.0,0.0001945,2]
[364824950,1749259832869,-440.0,0.0001945,2]
[364824951,1749259832878,-440.0,0.0001945,2]
[364824952,1749259832888,-440.0,0.0001945,2]
[364824953,1749259832897,-440.0,0.0001945,2]
[364824954,1749259832907,-440.0,0.0001945,2]
[364824955,1749259832916,-440.0,0.0001945,2]
[364824956,1749259832926,-440.0,0.0001945,2]
[364824957,1749259832935,-440.0,0.0001945,2]
[364824958,1749259832946,-440.0,0.0001945,2]
[364824959,1749259832961,-440.0,0.0001945,2]
[364824960,1749259832972,-440.0,0.0001945,2]
[364824961,1749259832982,-440.0,0.0001945,2]
[364824962,1749259832991,-430.0,0.0001945,2]
[364824963,1749259833002,-440.0,0.0001945,2]
[364824964,1749259833011,-440.0,0.0001945,2]
[364824965,1749259833021,-536.9,0.0001945,2]
[364824966,1749259833031,-440.0,0.0001945,2]
[364824967,1749259833041,-440.0,0.0001945,2]
[364824968,1749259833051,-482.52733892,0.0001945,2]
[364824969,1749259833060,-440.0,0.0001945,2]
[364824970,1749259833070,-444.08892282,0.0001945,2]
[364824971,1749259833079,-440.0,0.0001945,2]
[364824972,1749259833089,-151.0,0.00019452,2]
[364824973,1749259833098,-440.0,0.00019622,2]
[364824974,1749259833107,-440.0,0.00019622,2]
[364824975,1749259833117,-440.0,0.00019622,2]
[364824976,1749259833130,-440.0,0.00019622,2]
[364824977,1749259833140,-461.77,0.00019622,2]
[364824978,1749259833149,-440.0,0.00019724,2]
[364824979,1749259833159,-440.0,0.00019724,2]
[364824980,1749259833169,-484.74,0.00019724,2]
[364824981,1749259833178,-440.0,0.00019724,2]
[364824982,1749259833188,-440.0,0.00019724,2]
[364824983,1749259833198,-440.0,0.00019724,2]
[364824984,1749259833207,-440.0,0.00019724,2]